[Event "Open NK Rapid 2025 bord 26-50"]
[Site "Helmond, Netherlands"]
[Date "2025.05.03"]
[Round "3.8"]
[White "Katpatal, Akshaj"]
[Black "Darie, Aden"]
[Result "0-1"]
[TimeControl "15 min +5 sec increment"]
[WhiteFideId "1072595"]
[BlackFideId "1094831"]
[WhiteElo "1772"]
[BlackElo "1941"]

1. e4 {[%clk 00:15:09]} {[%emt 00:00:01]} e6 {[%clk 00:15:09]} {[%emt
00:00:01]} 2. d4 {[%clk 00:15:10]} {[%emt 00:00:04]} b6 {[%clk 00:15:12]}
{[%emt 00:00:02]} 3. Nc3 {[%clk 00:15:12]} {[%emt 00:00:03]} Bb7 {[%clk
00:15:15]} {[%emt 00:00:02]} 4. Nf3 {[%clk 00:15:10]} {[%emt 00:00:07]} Bb4
{[%clk 00:15:18]} {[%emt 00:00:02]} 5. Bd3 {[%clk 00:15:13]} {[%emt 00:00:02]}
Nf6 {[%clk 00:15:20]} {[%emt 00:00:03]} 6. e5 {[%clk 00:15:11]} {[%emt
00:00:07]} Ne4 {[%clk 00:15:23]} {[%emt 00:00:02]} 7. Bd2 {[%clk 00:15:09]}
{[%emt 00:00:07]} Nxd2 {[%clk 00:15:20]} {[%emt 00:00:07]} 8. Qxd2 {[%clk
00:15:08]} {[%emt 00:00:06]} Bxc3 {[%clk 00:14:51]} {[%emt 00:00:35]} 9. Qxc3
{[%clk 00:15:11]} {[%emt 00:00:01]} Bxf3 {[%clk 00:14:54]} {[%emt 00:00:02]} 10.
gxf3 {[%clk 00:15:15]} {[%emt 00:00:02]} O-O {[%clk 00:14:55]} {[%emt
00:00:04]} 11. O-O-O {[%clk 00:15:17]} {[%emt 00:00:03]} Nc6 {[%clk 00:14:54]}
{[%emt 00:00:05]} 12. Be4 {[%clk 00:15:08]} {[%emt 00:00:14]} Qe8 {[%clk
00:13:49]} {[%emt 00:01:11]} 13. Rhg1 {[%clk 00:15:10]} {[%emt 00:00:03]} Rd8
{[%clk 00:13:35]} {[%emt 00:00:19]} 14. Qd2 {[%clk 00:15:11]} {[%emt 00:00:04]}
f5 {[%clk 00:13:34]} {[%emt 00:00:06]} 15. exf6 {[%clk 00:14:58]} {[%emt
00:00:19]} Rxf6 {[%clk 00:13:36]} {[%emt 00:00:02]} 16. d5 {[%clk 00:14:54]}
{[%emt 00:00:09]} exd5 {[%clk 00:13:11]} {[%emt 00:00:30]} 17. Bxd5+ {[%clk
00:14:51]} {[%emt 00:00:08]} Kh8 {[%clk 00:13:11]} {[%emt 00:00:04]} 18. Rde1
{[%clk 00:13:52]} {[%emt 00:01:05]} Qf8 {[%clk 00:12:35]} {[%emt 00:00:41]} 19.
Rg3 {[%clk 00:10:22]} {[%emt 00:03:30]} Ne7 {[%clk 00:12:21]} {[%emt 00:00:25]}
20. Be4 {[%clk 00:09:48]} {[%emt 00:00:37]} d5 {[%clk 00:12:11]} {[%emt
00:00:16]} 21. Bd3 {[%clk 00:09:49]} {[%emt 00:00:04]} Nf5 {[%clk 00:12:12]}
{[%emt 00:00:04]} 22. Rh3 {[%clk 00:09:23]} {[%emt 00:00:29]} g6 {[%clk
00:11:04]} {[%emt 00:01:15]} 23. Qg5 {[%clk 00:08:47]} {[%emt 00:00:38]} Qf7
{[%clk 00:10:47]} {[%emt 00:00:24]} 24. Bxf5 {[%clk 00:08:45]} {[%emt
00:00:08]} gxf5 {[%clk 00:10:45]} {[%emt 00:00:06]} 25. Qf4 {[%clk 00:08:35]}
{[%emt 00:00:13]} Re8 {[%clk 00:10:34]} {[%emt 00:00:19]} 26. Rg1 {[%clk
00:08:16]} {[%emt 00:00:23]} Rg6 {[%clk 00:09:30]} {[%emt 00:01:10]} 27. Qd4+
{[%clk 00:08:00]} {[%emt 00:00:21]} Qf6 {[%clk 00:09:33]} {[%emt 00:00:02]} 28.
Qxf6+ {[%clk 00:08:00]} {[%emt 00:00:05]} Rxf6 {[%clk 00:09:36]} {[%emt
00:00:02]} 29. Rh5 {[%clk 00:08:02]} {[%emt 00:00:02]} Re2 {[%clk 00:09:33]}
{[%emt 00:00:09]} 30. Rhg5 {[%clk 00:08:03]} {[%emt 00:00:03]} Rf8 {[%clk
00:09:34]} {[%emt 00:00:04]} 31. R1g2 {[%clk 00:07:42]} {[%emt 00:00:27]} Re7
{[%clk 00:09:28]} {[%emt 00:00:11]} 32. b3 {[%clk 00:07:39]} {[%emt 00:00:08]}
c5 {[%clk 00:09:29]} {[%emt 00:00:04]} 33. h4 {[%clk 00:07:27]} {[%emt
00:00:18]} h6 {[%clk 00:09:03]} {[%emt 00:00:31]} 34. Rg6 {[%clk 00:07:27]}
{[%emt 00:00:04]} Kh7 {[%clk 00:09:04]} {[%emt 00:00:04]} 35. h5 {[%clk
00:07:31]} {[%emt 00:00:01]} d4 {[%clk 00:09:01]} {[%emt 00:00:08]} 36. Rd6
{[%clk 00:07:32]} {[%emt 00:00:03]} Rg7 {[%clk 00:08:58]} {[%emt 00:00:08]} 37.
Rdg6 {[%clk 00:05:49]} {[%emt 00:01:48]} Rfg8 {[%clk 00:08:45]} {[%emt
00:00:20]} 38. Rxg7+ {[%clk 00:05:51]} {[%emt 00:00:02]} Rxg7 {[%clk 00:08:49]}
39. Rh2 {[%clk 00:05:55]} Kg8 {[%clk 00:08:42]} {[%emt 00:00:11]} 40. Kd2
{[%clk 00:05:59]} {[%emt 00:00:02]} Kf7 {[%clk 00:08:45]} {[%emt 00:00:02]} 41.
Kd3 {[%clk 00:06:03]} {[%emt 00:00:01]} Ke6 {[%clk 00:08:43]} {[%emt 00:00:06]}
42. b4 {[%clk 00:06:02]} {[%emt 00:00:08]} Kd5 {[%clk 00:08:39]} {[%emt
00:00:09]} 43. bxc5 {[%clk 00:06:05]} bxc5 {[%clk 00:08:37]} {[%emt 00:00:07]}
44. c4+ {[%clk 00:06:08]} {[%emt 00:00:02]} Ke5 {[%clk 00:08:19]} {[%emt
00:00:23]} 45. Rh4 {[%clk 00:05:56]} {[%emt 00:00:17]} Rb7 {[%clk 00:08:22]}
{[%emt 00:00:03]} 46. f4+ {[%clk 00:05:57]} {[%emt 00:00:04]} Kf6 {[%clk
00:08:00]} {[%emt 00:00:26]} 47. Rh2 {[%clk 00:06:01]} Rb2 {[%clk 00:07:36]}
{[%emt 00:00:30]} 48. Rg2 {[%clk 00:06:05]} {[%emt 00:00:01]} Kf7 {[%clk
00:07:33]} {[%emt 00:00:07]} 49. Rg6 {[%clk 00:06:07]} {[%emt 00:00:03]} Rb6
{[%clk 00:07:37]} {[%emt 00:00:02]} 50. Rg2 {[%clk 00:06:06]} {[%emt 00:00:04]}
Ra6 {[%clk 00:07:33]} {[%emt 00:00:10]} 51. Rg1 {[%clk 00:05:55]} {[%emt
00:00:15]} Ra3+ {[%clk 00:07:34]} {[%emt 00:00:05]} 52. Ke2 {[%clk 00:05:54]}
{[%emt 00:00:05]} Rxa2+ {[%clk 00:07:38]} {[%emt 00:00:02]} 53. Kf3 {[%clk
00:05:58]} {[%emt 00:00:01]} Ra3+ {[%clk 00:07:38]} {[%emt 00:00:06]} 54. Ke2
{[%clk 00:06:02]} Rb3 {[%clk 00:07:19]} {[%emt 00:00:24]} 55. Ra1 {[%clk
00:06:03]} {[%emt 00:00:03]} Rb2+ {[%clk 00:05:58]} {[%emt 00:01:26]} 56. Kf3
{[%clk 00:06:03]} {[%emt 00:00:05]} Rb3+ {[%clk 00:05:10]} {[%emt 00:00:54]} 57.
Ke2 {[%clk 00:06:05]} {[%emt 00:00:02]} Rb2+ {[%clk 00:05:14]} 58. Kf3 {[%clk
00:06:10]} {[%emt 00:00:01]} Rb4 {[%clk 00:05:05]} {[%emt 00:00:14]} 59. Rxa7+
{[%clk 00:06:13]} {[%emt 00:00:01]} Ke8 {[%clk 00:05:08]} {[%emt 00:00:02]} 60.
Ra8+ {[%clk 00:05:57]} {[%emt 00:00:21]} Kd7 {[%clk 00:05:11]} {[%emt
00:00:02]} 61. Ra6 {[%clk 00:06:01]} Rxc4 {[%clk 00:05:12]} {[%emt 00:00:05]}
62. Rxh6 {[%clk 00:06:05]} d3 {[%clk 00:04:49]} {[%emt 00:00:28]} 63. Ke3
{[%clk 00:06:03]} {[%emt 00:00:06]} Rd4 {[%clk 00:04:53]} 64. Kd2 {[%clk
00:06:06]} {[%emt 00:00:01]} c4 {[%clk 00:04:57]} {[%emt 00:00:02]} 65. Rh7+
{[%clk 00:06:04]} {[%emt 00:00:07]} Kd6 {[%clk 00:04:44]} {[%emt 00:00:17]} 66.
Rh8 {[%clk 00:05:46]} {[%emt 00:00:24]} Rxf4 {[%clk 00:04:47]} {[%emt
00:00:02]} 67. h6 {[%clk 00:05:43]} {[%emt 00:00:08]} Rxf2+ {[%clk 00:04:39]}
{[%emt 00:00:13]} 68. Kd1 {[%clk 00:05:30]} {[%emt 00:00:19]} Rf1+ {[%clk
00:04:24]} {[%emt 00:00:20]} 69. Kd2 {[%clk 00:05:32]} Rf2+ {[%clk 00:04:28]}
{[%emt 00:00:01]} 70. Kd1 {[%clk 00:05:27]} {[%emt 00:00:11]} Ke5 {[%clk
00:02:35]} {[%emt 00:01:57]} 71. Rc8 {[%clk 00:03:53]} {[%emt 00:01:39]} Rh2
{[%clk 00:01:37]} {[%emt 00:01:03]} 72. Rxc4 {[%clk 00:03:55]} {[%emt
00:00:04]} Rxh6 {[%clk 00:01:40]} {[%emt 00:00:02]} 73. Kd2 {[%clk 00:03:58]}
{[%emt 00:00:02]} Rh3 {[%clk 00:01:40]} {[%emt 00:00:05]} 74. Rc8 {[%clk
00:03:59]} {[%emt 00:00:04]} Kf4 {[%clk 00:01:36]} {[%emt 00:00:09]} 75. Rf8
{[%emt 00:00:25]} Rh6 {[%clk 00:01:26]} 76. Kxd3 {[%clk 00:03:57]} {[%emt
00:00:03]} Re6 {[%clk 00:01:30]} 77. Kd2 {[%clk 00:03:55]} {[%emt 00:00:06]}
Kg4 {[%clk 00:01:33]} {[%emt 00:00:02]} 78. Rg8+ {[%clk 00:03:58]} {[%emt
00:00:02]} Kf3 {[%clk 00:01:37]} 79. Ra8 {[%clk 00:03:53]} {[%emt 00:00:10]} f4
{[%clk 00:01:36]} {[%emt 00:00:06]} 80. Ra4 {[%clk 00:03:55]} {[%emt 00:00:03]}
Kg3 {[%clk 00:01:39]} {[%emt 00:00:02]} 81. Ra1 {[%clk 00:03:59]} {[%emt
00:00:02]} f3 {[%clk 00:01:37]} {[%emt 00:00:07]} 82. Rh1 {[%clk 00:03:56]}
{[%emt 00:00:07]} 0-1

[Event "Open NK Rapid 2025 bord 26-50"]
[Site "Helmond, Netherlands"]
[Date "2025.05.03"]
[Round "3.10"]
[White "Bok, Benjamin"]
[Black "Nair, Pranav Prasobh"]
[Result "1-0"]
[TimeControl "15 min +5 sec increment"]
[WhiteFideId "1017063"]
[BlackFideId "40109135"]
[WhiteElo "2583"]
[BlackElo "1507"]

1. c4 {[%clk 00:15:08]} {[%emt 00:00:02]} e5 {[%clk 00:15:09]} {[%emt
00:00:01]} 2. g3 {[%clk 00:15:12]} c6 {[%clk 00:15:13]} {[%emt 00:00:02]} 3.
Nf3 {[%clk 00:15:15]} {[%emt 00:00:02]} e4 {[%clk 00:15:10]} {[%emt 00:00:07]}
4. Nd4 {[%clk 00:15:19]} {[%emt 00:00:02]} d5 {[%clk 00:15:14]} 5. cxd5 {[%clk
00:15:17]} {[%emt 00:00:06]} cxd5 {[%clk 00:15:17]} {[%emt 00:00:02]} 6. d3
{[%clk 00:15:15]} {[%emt 00:00:06]} exd3 {[%clk 00:15:00]} {[%emt 00:00:22]} 7.
Qxd3 {[%clk 00:15:18]} {[%emt 00:00:03]} Be6 {[%clk 00:15:00]} {[%emt
00:00:05]} 8. Nc3 {[%clk 00:14:37]} {[%emt 00:00:46]} Nc6 {[%clk 00:15:01]}
{[%emt 00:00:03]} 9. Nxe6 {[%clk 00:13:49]} {[%emt 00:00:53]} fxe6 {[%clk
00:15:05]} {[%emt 00:00:02]} 10. Bh3 {[%clk 00:13:53]} {[%emt 00:00:01]} Qf6
{[%clk 00:14:23]} {[%emt 00:00:47]} 11. O-O {[%clk 00:13:45]} {[%emt 00:00:12]}
Bc5 {[%clk 00:14:12]} {[%emt 00:00:16]} 12. Qb5 {[%clk 00:13:27]} {[%emt
00:00:24]} Bb6 {[%clk 00:13:52]} {[%emt 00:00:25]} 13. Be3 {[%clk 00:12:58]}
{[%emt 00:00:34]} d4 {[%clk 00:13:24]} {[%emt 00:00:34]} 14. Ne4 {[%clk
00:12:55]} {[%emt 00:00:07]} Qg6 {[%clk 00:12:33]} {[%emt 00:00:55]} 15. Nd6+
{[%clk 00:12:50]} {[%emt 00:00:11]} Ke7 {[%clk 00:11:35]} {[%emt 00:01:03]} 16.
Bf4 {[%clk 00:12:54]} {[%emt 00:00:01]} e5 {[%clk 00:10:50]} {[%emt 00:00:50]}
17. Bxe5 {[%clk 00:12:52]} {[%emt 00:00:07]} Qh5 {[%clk 00:10:53]} {[%emt
00:00:02]} 18. Nf5+ {[%clk 00:12:55]} {[%emt 00:00:02]} Kf7 {[%clk 00:09:27]}
{[%emt 00:01:31]} 19. Qd5+ {[%clk 00:12:58]} {[%emt 00:00:02]} Kg6 {[%clk
00:09:15]} {[%emt 00:00:17]} 20. Nh4+ {[%clk 00:13:01]} {[%emt 00:00:01]} Kh6
{[%clk 00:08:48]} {[%emt 00:00:32]} 21. Bf4+ {[%clk 00:13:03]} {[%emt
00:00:04]} g5 {[%clk 00:08:30]} {[%emt 00:00:23]} 22. Qe6+ {[%clk 00:13:06]}
{[%emt 00:00:01]} Kg7 {[%clk 00:08:08]} {[%emt 00:00:28]} 23. Nf5+ {[%clk
00:13:10]} Kf8 {[%clk 00:08:06]} {[%emt 00:00:07]} 24. Bd6+ {[%clk 00:13:14]}
Nge7 {[%clk 00:07:41]} {[%emt 00:00:29]} 25. Bxe7+ {[%clk 00:13:18]} {[%emt
00:00:02]} Ke8 {[%clk 00:07:14]} {[%emt 00:00:33]} 26. Nd6# {[%clk 00:13:21]}
1-0

[Event "Open NK Rapid 2025 bord 26-50"]
[Site "Helmond, Netherlands"]
[Date "2025.05.03"]
[Round "3.11"]
[White "Cakmak, Metehan Tugra"]
[Black "Teianu, Sabin"]
[Result "1-0"]
[TimeControl "15 min +5 sec increment"]
[WhiteFideId "44583885"]
[BlackFideId "1095846"]
[WhiteElo "1787"]
[BlackElo "2089"]

1. d4 {[%clk 00:14:28]} {[%emt 00:00:42]} d5 {[%clk 00:15:09]} 2. Nf3 {[%clk
00:14:32]} {[%emt 00:00:01]} Nf6 {[%clk 00:15:12]} {[%emt 00:00:02]} 3. g3
{[%clk 00:14:36]} c6 {[%clk 00:14:37]} {[%emt 00:00:41]} 4. Bg2 {[%clk
00:14:34]} {[%emt 00:00:07]} Bf5 {[%clk 00:14:40]} {[%emt 00:00:01]} 5. O-O
{[%clk 00:14:35]} {[%emt 00:00:05]} e6 {[%clk 00:14:34]} {[%emt 00:00:12]} 6.
Nbd2 {[%clk 00:14:28]} {[%emt 00:00:11]} h6 {[%clk 00:14:33]} {[%emt 00:00:06]}
7. c4 {[%clk 00:14:29]} {[%emt 00:00:04]} Bd6 {[%clk 00:14:31]} {[%emt
00:00:06]} 8. Qb3 {[%clk 00:14:01]} {[%emt 00:00:34]} Qc8 {[%clk 00:14:30]}
{[%emt 00:00:07]} 9. Re1 {[%clk 00:13:32]} {[%emt 00:00:33]} O-O {[%clk
00:14:26]} {[%emt 00:00:09]} 10. Nh4 {[%clk 00:13:04]} {[%emt 00:00:34]} Bh7
{[%clk 00:13:10]} {[%emt 00:01:20]} 11. e4 {[%clk 00:12:58]} {[%emt 00:00:12]}
dxe4 {[%clk 00:13:12]} {[%emt 00:00:03]} 12. Nxe4 {[%clk 00:13:00]} {[%emt
00:00:02]} Nxe4 {[%clk 00:13:15]} {[%emt 00:00:01]} 13. Bxe4 {[%emt 00:00:04]}
Bxe4 {[%clk 00:13:16]} {[%emt 00:00:01]} 14. Rxe4 {[%clk 00:13:09]} Nd7 {[%clk
00:12:47]} {[%emt 00:00:34]} 15. Re1 {[%clk 00:12:53]} {[%emt 00:00:20]} Rb8
{[%clk 00:11:14]} {[%emt 00:01:39]} 16. Qc3 {[%clk 00:12:10]} {[%emt 00:00:48]}
Re8 {[%clk 00:10:44]} {[%emt 00:00:35]} 17. Nf3 {[%clk 00:11:42]} {[%emt
00:00:33]} c5 {[%clk 00:09:01]} {[%emt 00:01:48]} 18. Be3 {[%clk 00:09:55]}
{[%emt 00:01:52]} a6 {[%clk 00:07:46]} {[%emt 00:01:20]} 19. Rac1 {[%clk
00:09:08]} {[%emt 00:00:52]} Qc6 {[%clk 00:06:57]} {[%emt 00:00:54]} 20. dxc5
{[%clk 00:08:45]} {[%emt 00:00:29]} Bxc5 {[%clk 00:06:31]} {[%emt 00:00:30]} 21.
Bxc5 {[%clk 00:08:44]} {[%emt 00:00:06]} Qxc5 {[%clk 00:06:05]} {[%emt
00:00:31]} 22. b4 {[%clk 00:08:28]} {[%emt 00:00:22]} Qc7 {[%clk 00:06:07]}
{[%emt 00:00:02]} 23. a3 {[%clk 00:07:59]} {[%emt 00:00:34]} Rbc8 {[%clk
00:05:49]} {[%emt 00:00:24]} 24. c5 {[%clk 00:07:51]} {[%emt 00:00:12]} Nf6
{[%clk 00:05:49]} {[%emt 00:00:05]} 25. Qe5 {[%clk 00:07:25]} {[%emt 00:00:31]}
Qc6 {[%clk 00:05:07]} {[%emt 00:00:48]} 26. Qc3 {[%clk 00:06:45]} {[%emt
00:00:44]} Nd5 {[%clk 00:04:58]} {[%emt 00:00:14]} 27. Qb3 {[%clk 00:06:40]}
{[%emt 00:00:09]} Red8 {[%clk 00:04:42]} {[%emt 00:00:22]} 28. Ne5 {[%clk
00:06:37]} {[%emt 00:00:09]} Qb5 {[%clk 00:04:11]} {[%emt 00:00:36]} 29. Qf3
{[%clk 00:06:11]} {[%emt 00:00:29]} Nf6 {[%clk 00:03:26]} {[%emt 00:00:51]} 30.
Nc4 {[%clk 00:05:59]} {[%emt 00:00:17]} Rc7 {[%clk 00:01:49]} {[%emt 00:01:43]}
31. Nd6 {[%clk 00:05:49]} {[%emt 00:00:14]} b6 {[%clk 00:01:41]} {[%emt
00:00:13]} 32. Nxb5 {[%clk 00:05:17]} {[%emt 00:00:38]} 1-0

[Event "Open NK Rapid 2025 bord 26-50"]
[Site "Helmond, Netherlands"]
[Date "2025.05.03"]
[Round "3.12"]
[White "Zhou, Yanyang"]
[Black "Ruben, Berend"]
[Result "0-1"]
[TimeControl "15 min +5 sec increment"]
[WhiteFideId "40109739"]
[BlackFideId "1084682"]
[WhiteElo "1785"]
[BlackElo "2074"]

1. e4 {[%clk 00:15:09]} e5 {[%clk 00:15:06]} {[%emt 00:00:04]} 2. Nf3 {[%clk
00:15:12]} {[%emt 00:00:02]} Nc6 {[%clk 00:15:09]} {[%emt 00:00:02]} 3. Bb5
{[%clk 00:15:10]} {[%emt 00:00:08]} Nge7 {[%clk 00:15:12]} {[%emt 00:00:02]} 4.
O-O {[%clk 00:15:03]} {[%emt 00:00:12]} Ng6 {[%clk 00:15:10]} {[%emt 00:00:07]}
5. c3 {[%clk 00:14:57]} {[%emt 00:00:11]} d5 {[%clk 00:14:09]} {[%emt
00:01:06]} 6. Qa4 {[%clk 00:13:45]} {[%emt 00:01:17]} dxe4 {[%clk 00:12:34]}
{[%emt 00:01:39]} 7. Bxc6+ {[%clk 00:13:27]} {[%emt 00:00:23]} bxc6 {[%clk
00:12:37]} {[%emt 00:00:02]} 8. Qxc6+ {[%clk 00:13:29]} {[%emt 00:00:03]} Bd7
{[%clk 00:12:40]} {[%emt 00:00:02]} 9. Qxe4 {[%clk 00:13:28]} {[%emt 00:00:07]}
Bd6 {[%clk 00:12:18]} {[%emt 00:00:26]} 10. d4 {[%clk 00:12:59]} {[%emt
00:00:34]} f5 {[%clk 00:12:10]} {[%emt 00:00:12]} 11. Qd5 {[%clk 00:12:17]}
{[%emt 00:00:48]} Rb8 {[%clk 00:10:48]} {[%emt 00:01:27]} 12. dxe5 {[%clk
00:11:52]} {[%emt 00:00:29]} Rb5 {[%clk 00:10:11]} {[%emt 00:00:43]} 13. Qd4
{[%clk 00:10:45]} {[%emt 00:01:12]} Bc5 {[%clk 00:08:15]} {[%emt 00:02:02]} 14.
Qc4 {[%clk 00:09:56]} {[%emt 00:00:54]} Qe7 {[%clk 00:07:56]} {[%emt 00:00:24]}
15. a4 {[%clk 00:09:16]} {[%emt 00:00:44]} Rb8 {[%clk 00:07:02]} {[%emt
00:00:59]} 16. Bg5 {[%clk 00:08:55]} {[%emt 00:00:27]} Be6 {[%clk 00:04:49]}
{[%emt 00:02:18]} 17. Qe2 {[%clk 00:07:46]} {[%emt 00:01:14]} Qf7 {[%clk
00:04:51]} {[%emt 00:00:03]} 18. Rd1 {[%clk 00:07:13]} {[%emt 00:00:38]} O-O
{[%clk 00:04:46]} {[%emt 00:00:10]} 19. Nd4 {[%clk 00:07:02]} {[%emt 00:00:16]}
h6 {[%clk 00:04:08]} {[%emt 00:00:43]} 20. Nxe6 {[%clk 00:06:32]} {[%emt
00:00:35]} Qxe6 {[%clk 00:04:07]} {[%emt 00:00:06]} 21. Be3 {[%clk 00:06:18]}
{[%emt 00:00:19]} Bxe3 {[%clk 00:03:55]} {[%emt 00:00:16]} 22. fxe3 {[%clk
00:05:46]} {[%emt 00:00:37]} Qxe5 {[%clk 00:03:47]} {[%emt 00:00:13]} 23. Na3
{[%clk 00:05:36]} {[%emt 00:00:16]} Rfe8 {[%clk 00:03:23]} {[%emt 00:00:29]} 24.
Nc4 {[%clk 00:05:30]} {[%emt 00:00:10]} Qe4 {[%clk 00:03:23]} {[%emt 00:00:05]}
25. Rd4 {[%clk 00:05:21]} {[%emt 00:00:14]} Qe6 {[%clk 00:03:17]} {[%emt
00:00:11]} 26. Rad1 {[%clk 00:05:05]} {[%emt 00:00:21]} Ne5 {[%clk 00:02:57]}
{[%emt 00:00:26]} 27. Nxe5 {[%clk 00:05:05]} {[%emt 00:00:05]} Qxe5 {[%clk
00:03:01]} {[%emt 00:00:01]} 28. Qc4+ {[%clk 00:05:04]} {[%emt 00:00:05]} Kh8
{[%clk 00:02:58]} {[%emt 00:00:08]} 29. Qe2 {[%clk 00:04:38]} {[%emt 00:00:31]}
f4 {[%clk 00:02:49]} {[%emt 00:00:14]} 30. Rd5 {[%clk 00:04:28]} {[%emt
00:00:15]} Qxe3+ {[%clk 00:02:41]} {[%emt 00:00:14]} 31. Qxe3 {[%clk 00:04:28]}
{[%emt 00:00:05]} fxe3 {[%clk 00:02:43]} {[%emt 00:00:03]} 32. b4 {[%clk
00:04:07]} {[%emt 00:00:26]} Rb6 {[%clk 00:02:33]} {[%emt 00:00:15]} 33. Rd8
{[%clk 00:03:58]} {[%emt 00:00:14]} Rbe6 {[%clk 00:02:22]} {[%emt 00:00:15]} 34.
Rxe8+ {[%clk 00:04:00]} {[%emt 00:00:03]} Rxe8 {[%clk 00:02:26]} {[%emt
00:00:01]} 35. Re1 {[%clk 00:04:03]} {[%emt 00:00:02]} g5 {[%clk 00:02:09]}
{[%emt 00:00:21]} 36. Kf1 {[%clk 00:04:04]} {[%emt 00:00:05]} Rf8+ {[%clk
00:02:07]} {[%emt 00:00:08]} 37. Kg1 {[%clk 00:04:04]} {[%emt 00:00:05]} Re8
{[%clk 00:02:09]} {[%emt 00:00:03]} 38. Re2 {[%clk 00:03:57]} {[%emt 00:00:12]}
g4 {[%clk 00:02:05]} {[%emt 00:00:08]} 39. Kf1 {[%clk 00:03:48]} {[%emt
00:00:14]} Kg7 {[%clk 00:02:08]} {[%emt 00:00:03]} 40. Ke1 {[%clk 00:03:49]}
{[%emt 00:00:04]} Kf6 {[%clk 00:02:11]} {[%emt 00:00:01]} 41. Kd1 {[%clk
00:03:50]} {[%emt 00:00:04]} Kf5 {[%clk 00:02:15]} {[%emt 00:00:01]} 42. Kc2
{[%clk 00:03:52]} {[%emt 00:00:03]} Ke4 {[%clk 00:02:18]} {[%emt 00:00:02]} 43.
Re1 {[%clk 00:02:55]} {[%emt 00:01:02]} Rf8 {[%clk 00:02:01]} {[%emt 00:00:23]}
44. h3 {[%clk 00:02:02]} {[%emt 00:00:57]} g3 {[%clk 00:02:01]} {[%emt
00:00:05]} 45. Rd1 {[%clk 00:01:51]} {[%emt 00:00:16]} Rf2+ {[%clk 00:02:04]}
{[%emt 00:00:02]} 46. Kb3 {[%clk 00:01:50]} {[%emt 00:00:07]} Rxg2 {[%clk
00:01:55]} {[%emt 00:00:13]} 47. Rd4+ {[%clk 00:01:53]} {[%emt 00:00:03]} Kf3
{[%clk 00:01:48]} {[%emt 00:00:11]} 48. Rd8 {[%clk 00:01:55]} {[%emt 00:00:03]}
Rd2 {[%clk 00:01:41]} {[%emt 00:00:12]} 49. Rf8 {[%clk 00:01:55]} {[%emt
00:00:05]} Kg2 {[%clk 00:01:42]} {[%emt 00:00:03]} 50. Re8 {[%clk 00:01:56]}
{[%emt 00:00:05]} Kf2 {[%clk 00:01:39]} {[%emt 00:00:08]} 51. Rf8+ {[%clk
00:01:59]} {[%emt 00:00:02]} Ke1 {[%clk 00:01:39]} {[%emt 00:00:04]} 52. Rf3
{[%clk 00:02:00]} {[%emt 00:00:05]} g2 {[%clk 00:01:32]} {[%emt 00:00:12]} 53.
Rxe3+ {[%clk 00:02:01]} {[%emt 00:00:05]} Kf2 {[%clk 00:01:34]} {[%emt
00:00:02]} 54. Re8 {[%clk 00:01:55]} {[%emt 00:00:11]} g1=Q {[%clk 00:01:32]}
{[%emt 00:00:05]} 55. Rf8+ {[%clk 00:01:58]} {[%emt 00:00:05]} Ke3 {[%clk
00:01:35]} {[%emt 00:00:02]} 56. Re8 {[%clk 00:02:01]} {[%emt 00:00:02]} Kf4
{[%clk 00:01:38]} {[%emt 00:00:01]} 57. Rf8+ {[%clk 00:02:04]} {[%emt
00:00:02]} Ke5 {[%clk 00:01:41]} {[%emt 00:00:02]} 58. Re8+ {[%clk 00:02:08]}
{[%emt 00:00:01]} Kf6 {[%clk 00:01:45]} {[%emt 00:00:02]} 59. Rf8+ {[%clk
00:02:10]} {[%emt 00:00:02]} Ke7 {[%clk 00:01:48]} {[%emt 00:00:02]} 60. Rh8
{[%clk 00:02:08]} {[%emt 00:00:07]} Qb1+ {[%clk 00:01:46]} {[%emt 00:00:07]} 61.
Kc4 {[%clk 00:02:11]} {[%emt 00:00:03]} Qe4+ {[%clk 00:01:48]} {[%emt
00:00:02]} 62. Kb3 {[%clk 00:02:14]} {[%emt 00:00:02]} Qd5+ {[%clk 00:01:51]}
{[%emt 00:00:02]} 63. Ka3 {[%clk 00:02:18]} {[%emt 00:00:02]} Qa2# {[%clk
00:01:47]} {[%emt 00:00:02]} 0-1